[Event "*** Titled Tuesday Blitz"]
[Site "Chess.com"]
[Date "2020.04.14"]
[Round "6"]
[White "MarcoCorvi"]
[Black "QueenOfTactics90"]
[Result "1-0"]
[WhiteElo "2143"]
[BlackElo "1936"]
[TimeControl "180+1"]
[EndTime "11:04:04 PDT"]
[Termination "MarcoCorvi won by resignation"]

1. e4 {[%clk 0:03:00.9]} 1... c5 {[%clk 0:02:59.8]} 2. Nc3 {[%clk 0:02:57.4]}
2... Nc6 {[%clk 0:02:59.9]} 3. Bb5 {[%clk 0:02:52.7]} 3... g6 {[%clk 0:02:59]}
4. Bxc6 {[%clk 0:02:49.1]} 4... dxc6 {[%clk 0:02:58.1]} 5. d3 {[%clk 0:02:43.3]}
5... Bg7 {[%clk 0:02:57.9]} 6. f4 {[%clk 0:02:37.5]} 6... e5 {[%clk 0:02:50.7]}
7. Nf3 {[%clk 0:02:36.6]} 7... exf4 {[%clk 0:02:48.5]} 8. Bxf4 {[%clk
0:02:36.5]} 8... Ne7 {[%clk 0:02:47.8]} 9. O-O {[%clk 0:02:35.4]} 9... O-O
{[%clk 0:02:47.2]} 10. Qe1 {[%clk 0:02:13.7]} 10... Be6 {[%clk 0:02:45.5]} 11.
Qh4 {[%clk 0:01:44.8]} 11... f6 {[%clk 0:02:35.2]} 12. Rae1 {[%clk 0:01:44.3]}
12... Bf7 {[%clk 0:02:18.9]} 13. Bd2 {[%clk 0:01:36.4]} 13... b6 {[%clk
0:02:10.9]} 14. Bc1 {[%clk 0:01:33.7]} 14... a5 {[%clk 0:02:09.5]} 15. a3 {[%clk
0:01:32.4]} 15... f5 {[%clk 0:02:02.2]} 16. e5 {[%clk 0:01:29.6]} 16... Nd5
{[%clk 0:02:01.7]} 17. Bg5 {[%clk 0:01:23.4]} 17... Qd7 {[%clk 0:01:58.4]} 18.
Bf6 {[%clk 0:01:16.7]} 18... h6 {[%clk 0:01:42.7]} 19. Bxg7 {[%clk 0:01:12.5]}
19... Kxg7 {[%clk 0:01:42.4]} 20. Nxd5 {[%clk 0:01:12.8]} 20... cxd5 {[%clk
0:01:42.2]} 21. Qf6+ {[%clk 0:01:13]} 21... Kh7 {[%clk 0:01:40.8]} 22. e6 {[%clk
0:01:13]} 22... Qd6 {[%clk 0:01:37.2]} 23. Re2 {[%clk 0:00:47.5]} 23... Bg8
{[%clk 0:01:24.7]} 24. Qh4 {[%clk 0:00:46.7]} 24... Bxe6 {[%clk 0:01:21.8]} 25.
Rxe6 {[%clk 0:00:43.4]} 25... Qd7 {[%clk 0:01:11.9]} 26. Re7+ {[%clk 0:00:41.1]}
26... Qxe7 {[%clk 0:01:09.4]} 27. Qxe7+ {[%clk 0:00:42]} 27... Kg8 {[%clk
0:01:10]} 28. Qe6+ {[%clk 0:00:38]} 28... Kg7 {[%clk 0:01:08.2]} 29. Qxd5 {[%clk
0:00:38.1]} 29... Rae8 {[%clk 0:01:07.1]} 30. Ne5 {[%clk 0:00:36.6]} 30... Rf6
{[%clk 0:01:05.2]} 31. Nd7 {[%clk 0:00:35.1]} 31... Rf7 {[%clk 0:01:04.3]} 32.
Nxb6 {[%clk 0:00:32]} 32... Re2 {[%clk 0:01:03]} 33. Qxc5 {[%clk 0:00:29.4]}
33... g5 {[%clk 0:01:01.6]} 34. h3 {[%clk 0:00:28.7]} 34... f4 {[%clk
0:01:01.2]} 35. Nd5 {[%clk 0:00:28.5]} 35... Rd2 {[%clk 0:00:58.8]} 36. Qc3+
{[%clk 0:00:28.2]} 36... Kg6 {[%clk 0:00:56.8]} 37. Qxd2 {[%clk 0:00:29.1]}
37... Re7 {[%clk 0:00:57.2]} 38. Qc3 {[%clk 0:00:28.8]} 38... Re6 {[%clk
0:00:57.1]} 39. Qd4 {[%clk 0:00:28.3]} 39... Rc6 {[%clk 0:00:56.4]} 40. c4
{[%clk 0:00:28.2]} 40... a4 {[%clk 0:00:54.8]} 41. c5 {[%clk 0:00:27.5]} 41...
h5 {[%clk 0:00:54]} 42. Qe4+ {[%clk 0:00:27.1]} 42... Kh6 {[%clk 0:00:53.8]} 43.
d4 {[%clk 0:00:24.4]} 43... Rg6 {[%clk 0:00:51.7]} 44. Nc3 {[%clk 0:00:24.2]}
44... h4 {[%clk 0:00:50.3]} 45. Rxf4 {[%clk 0:00:22.5]} 45... gxf4 {[%clk
0:00:49.9]} 46. Qxf4+ {[%clk 0:00:23.4]} 46... Kg7 {[%clk 0:00:49.5]} 47. Qxh4
{[%clk 0:00:22.9]} 47... Kf7 {[%clk 0:00:49.2]} 48. Qe4 {[%clk 0:00:22.1]} 48...
Re6 {[%clk 0:00:48.8]} 49. Qxe6+ {[%clk 0:00:21.4]} 49... Kxe6 {[%clk
0:00:49.7]} 50. Nxa4 {[%clk 0:00:21]} 50... Kd5 {[%clk 0:00:49.8]} 51. Nc3+
{[%clk 0:00:21.5]} 51... Kxd4 {[%clk 0:00:50.7]} 52. c6 {[%clk 0:00:21.1]} 52...
Kc5 {[%clk 0:00:51.6]} 53. c7 {[%clk 0:00:21.5]} 53... Kd4 {[%clk 0:00:52.5]}
54. c8=Q {[%clk 0:00:20.3]} 54... Ke3 {[%clk 0:00:51.8]} 55. Qe6+ {[%clk
0:00:19.6]} 55... Kf4 {[%clk 0:00:52.7]} 56. Qe4+ {[%clk 0:00:18.5]} 56... Kg5
{[%clk 0:00:53.6]} 57. g3 {[%clk 0:00:16.6]} 57... Kf6 {[%clk 0:00:54.5]} 58.
Kg2 {[%clk 0:00:16.9]} 58... Kg7 {[%clk 0:00:55.4]} 59. Kf3 {[%clk 0:00:17.1]}
59... Kf6 {[%clk 0:00:56.3]} 60. g4 {[%clk 0:00:17.3]} 60... Kg7 {[%clk
0:00:57.2]} 61. h4 {[%clk 0:00:17.3]} 61... Kf6 {[%clk 0:00:58.1]} 62. Qd5
{[%clk 0:00:17.1]} 62... Ke7 {[%clk 0:00:59]} 63. Kf4 {[%clk 0:00:17.2]} 63...
Kf6 {[%clk 0:00:59.9]} 64. Ke4 {[%clk 0:00:17.1]} 64... Kg6 {[%clk 0:01:00.2]}
65. Qf5+ {[%clk 0:00:13.7]} 1-0

[Event "*** Titled Tuesday Blitz"]
[Site "Chess.com"]
[Date "2020.04.14"]
[Round "6"]
[White "lachesisQ"]
[Black "sergoy"]
[Result "1/2-1/2"]
[WhiteElo "3089"]
[BlackElo "2900"]
[TimeControl "180+1"]
[EndTime "11:04:05 PDT"]
[Termination "Game drawn by agreement"]

1. c4 {[%clk 0:03:00.9]} 1... e5 {[%clk 0:02:59.2]} 2. Nc3 {[%clk 0:03:00.9]}
2... Nf6 {[%clk 0:02:59]} 3. Nf3 {[%clk 0:03:00.3]} 3... Nc6 {[%clk 0:02:59.2]}
4. e4 {[%clk 0:03:01.1]} 4... Bc5 {[%clk 0:02:58.8]} 5. Nxe5 {[%clk 0:03:00.7]}
5... Nxe5 {[%clk 0:02:59.5]} 6. d4 {[%clk 0:03:01]} 6... Bb4 {[%clk 0:02:59.7]}
7. dxe5 {[%clk 0:03:01.3]} 7... Nxe4 {[%clk 0:03:00.1]} 8. Qf3 {[%clk
0:03:01.9]} 8... Nxc3 {[%clk 0:03:00.2]} 9. bxc3 {[%clk 0:03:02.8]} 9... Ba5
{[%clk 0:03:00.9]} 10. Bf4 {[%clk 0:03:02.6]} 10... O-O {[%clk 0:02:54.1]} 11.
O-O-O {[%clk 0:03:01.9]} 11... Qe7 {[%clk 0:02:52]} 12. Kb2 {[%clk 0:03:01.9]}
12... Qe6 {[%clk 0:02:12.7]} 13. Rd5 {[%clk 0:02:50.7]} 13... a6 {[%clk
0:01:50.9]} 14. Bd3 {[%clk 0:02:43.8]} 14... b5 {[%clk 0:01:45.3]} 15. Rd4
{[%clk 0:01:41.3]} 15... Rb8 {[%clk 0:01:41.2]} 16. c5 {[%clk 0:01:41.5]} 16...
Qe7 {[%clk 0:01:32.5]} 17. Bd2 {[%clk 0:01:30.6]} 17... b4 {[%clk 0:01:18.4]}
18. c4 {[%clk 0:01:30]} 18... Qxe5 {[%clk 0:01:15.4]} 19. Qe4 {[%clk 0:01:14.8]}
19... Qxe4 {[%clk 0:01:10.1]} 20. Bxe4 {[%clk 0:01:15.7]} 20... d6 {[%clk
0:01:04.4]} 21. cxd6 {[%clk 0:01:07.7]} 21... cxd6 {[%clk 0:01:05.3]} 22. Rxd6
{[%clk 0:01:08]} 22... Bc7 {[%clk 0:01:00.5]} 23. Rd3 {[%clk 0:01:06.6]} 23...
Be5+ {[%clk 0:00:55.2]} 24. Kb3 {[%clk 0:01:06]} 24... a5 {[%clk 0:00:55.8]} 25.
Be3 {[%clk 0:00:59]} 25... Be6 {[%clk 0:00:53.5]} 26. Bd5 {[%clk 0:00:57.1]}
26... Bd7 {[%clk 0:00:52.8]} 27. Bd4 {[%clk 0:00:52.2]} 27... a4+ {[%clk
0:00:44.2]} 28. Kb2 {[%clk 0:00:52.4]} 28... Bxd4+ {[%clk 0:00:41.3]} 29. Rxd4
{[%clk 0:00:53.3]} 29... Bf5 {[%clk 0:00:24.2]} 30. c5 {[%clk 0:00:48.9]} 30...
Rfe8 {[%clk 0:00:24.4]} 31. Rhd1 {[%clk 0:00:46.7]} 31... g6 {[%clk 0:00:22.7]}
32. c6 {[%clk 0:00:46.6]} 32... Re2+ {[%clk 0:00:22.4]} 33. R4d2 {[%clk
0:00:45.4]} 33... Re5 {[%clk 0:00:22.3]} 34. Rc1 {[%clk 0:00:40.7]} 34... Re7
{[%clk 0:00:19.1]} 35. Bf3 {[%clk 0:00:33.4]} 35... Kg7 {[%clk 0:00:17.8]} 36.
Rd4 {[%clk 0:00:31.8]} 36... a3+ {[%clk 0:00:15.4]} 37. Ka1 {[%clk 0:00:26.6]}
37... Rc7 {[%clk 0:00:10]} 38. g4 {[%clk 0:00:19.9]} 38... Be6 {[%clk
0:00:09.6]} 39. h3 {[%clk 0:00:19.8]} 39... b3 {[%clk 0:00:09.6]} 40. axb3
{[%clk 0:00:19.9]} 40... Rxb3 {[%clk 0:00:10.5]} 41. Bg2 {[%clk 0:00:20.3]}
41... Rb2 {[%clk 0:00:10.2]} 42. Bd5 {[%clk 0:00:17.2]} 42... Bxd5 {[%clk
0:00:06.9]} 43. Rxd5 {[%clk 0:00:18.1]} 43... Rb6 {[%clk 0:00:07.1]} 44. Rd6
{[%clk 0:00:16.5]} 44... Kf8 {[%clk 0:00:07.4]} 45. Rc2 {[%clk 0:00:16.8]} 45...
Ke7 {[%clk 0:00:07.5]} 1/2-1/2

[Event "*** Titled Tuesday Blitz"]
[Site "Chess.com"]
[Date "2020.04.14"]
[Round "6"]
[White "Guenplen"]
[Black "cassoulet"]
[Result "1-0"]
[WhiteElo "2944"]
[BlackElo "2713"]
[TimeControl "180+1"]
[EndTime "11:04:06 PDT"]
[Termination "Guenplen won by checkmate"]

1. Nf3 {[%clk 0:03:00.9]} 1... d5 {[%clk 0:02:59.7]} 2. d4 {[%clk 0:03:00.5]}
2... Nf6 {[%clk 0:03:00.1]} 3. Bf4 {[%clk 0:03:00.8]} 3... e6 {[%clk 0:03:00.5]}
4. e3 {[%clk 0:03:01.1]} 4... Be7 {[%clk 0:03:00.1]} 5. Nbd2 {[%clk 0:03:00.8]}
5... O-O {[%clk 0:03:00.5]} 6. Bd3 {[%clk 0:03:00.9]} 6... c5 {[%clk 0:03:00.9]}
7. c3 {[%clk 0:03:01.2]} 7... Nc6 {[%clk 0:03:01.1]} 8. Qe2 {[%clk 0:03:00.1]}
8... b6 {[%clk 0:03:00]} 9. Rd1 {[%clk 0:02:58.5]} 9... Bb7 {[%clk 0:02:59.7]}
10. h3 {[%clk 0:02:58.5]} 10... Re8 {[%clk 0:02:57.6]} 11. O-O {[%clk
0:02:56.7]} 11... Bd6 {[%clk 0:02:57.5]} 12. Bxd6 {[%clk 0:02:53.1]} 12... Qxd6
{[%clk 0:02:58.4]} 13. e4 {[%clk 0:02:53.7]} 13... Qe7 {[%clk 0:02:44]} 14. e5
{[%clk 0:02:51]} 14... Nd7 {[%clk 0:02:43.3]} 15. a3 {[%clk 0:02:51]} 15... cxd4
{[%clk 0:02:42.4]} 16. cxd4 {[%clk 0:02:50.5]} 16... a6 {[%clk 0:02:42.2]} 17.
h4 {[%clk 0:02:46.9]} 17... f5 {[%clk 0:02:35.8]} 18. exf6 {[%clk 0:02:43.9]}
18... Nxf6 {[%clk 0:02:34.9]} 19. Rfe1 {[%clk 0:02:41.4]} 19... g6 {[%clk
0:02:17.8]} 20. Qe3 {[%clk 0:02:33.7]} 20... Qg7 {[%clk 0:02:15.9]} 21. Ne5
{[%clk 0:02:28.7]} 21... Nxe5 {[%clk 0:02:11.1]} 22. Qxe5 {[%clk 0:02:29.6]}
22... Rac8 {[%clk 0:02:04.8]} 23. Nf3 {[%clk 0:02:22.6]} 23... Nd7 {[%clk
0:02:01.5]} 24. Qe2 {[%clk 0:02:13.3]} 24... b5 {[%clk 0:01:55.6]} 25. Qe3
{[%clk 0:02:07.9]} 25... Qf6 {[%clk 0:01:50.2]} 26. Re2 {[%clk 0:02:04.8]} 26...
Re7 {[%clk 0:01:44.3]} 27. Rde1 {[%clk 0:02:04]} 27... Rf8 {[%clk 0:01:39.7]}
28. Qg5 {[%clk 0:01:59.3]} 28... Bc8 {[%clk 0:01:22.4]} 29. Rc1 {[%clk
0:01:48.3]} 29... Qxg5 {[%clk 0:01:16.8]} 30. hxg5 {[%clk 0:01:43.7]} 30... Nb6
{[%clk 0:01:16.9]} 31. b3 {[%clk 0:01:42]} 31... Bd7 {[%clk 0:01:08.6]} 32. Ne5
{[%clk 0:01:29.6]} 32... Rf4 {[%clk 0:01:01.6]} 33. g3 {[%clk 0:01:29.7]} 33...
Rxd4 {[%clk 0:00:59.2]} 34. f4 {[%clk 0:01:30.2]} 34... Be8 {[%clk 0:00:55.1]}
35. Kf2 {[%clk 0:01:30.1]} 35... Nd7 {[%clk 0:00:46.6]} 36. Ke3 {[%clk
0:01:27.7]} 36... Nxe5 {[%clk 0:00:39.7]} 37. Kxd4 {[%clk 0:01:27.5]} 37... Nc6+
{[%clk 0:00:39]} 38. Kc5 {[%clk 0:01:27]} 38... Na5 {[%clk 0:00:39.1]} 39. Rb1
{[%clk 0:01:06.6]} 39... Nb7+ {[%clk 0:00:35.1]} 40. Kd4 {[%clk 0:01:01.3]}
40... Nd6 {[%clk 0:00:35.3]} 41. Rc1 {[%clk 0:00:58.6]} 41... Kf7 {[%clk
0:00:33.7]} 42. Rec2 {[%clk 0:00:57.4]} 42... Bd7 {[%clk 0:00:27.6]} 43. Rc7
{[%clk 0:00:53.5]} 43... a5 {[%clk 0:00:27.8]} 44. Ke5 {[%clk 0:00:47.4]} 44...
Nf5 {[%clk 0:00:21.6]} 45. Bxf5 {[%clk 0:00:37.1]} 45... exf5+ {[%clk
0:00:22.5]} 46. Kd6 {[%clk 0:00:27.8]} 46... Ke8 {[%clk 0:00:22]} 47. Ra7 {[%clk
0:00:19.8]} 47... Re6+ {[%clk 0:00:19.1]} 48. Kxd5 {[%clk 0:00:18.5]} 48... Re3
{[%clk 0:00:19.4]} 49. Rcc7 {[%clk 0:00:17.1]} 49... Be6+ {[%clk 0:00:16.6]} 50.
Kd6 {[%clk 0:00:15.6]} 50... Kd8 {[%clk 0:00:12.2]} 51. Ra8+ {[%clk 0:00:15.4]}
51... Bc8 {[%clk 0:00:12.4]} 52. Raxc8# {[%clk 0:00:15.3]} 1-0

[Event "*** Titled Tuesday Blitz"]
[Site "Chess.com"]
[Date "2020.04.14"]
[Round "6"]
[White "dennisodessa"]
[Black "HouseOfDurin"]
[Result "0-1"]
[WhiteElo "2300"]
[BlackElo "2080"]
[TimeControl "180+1"]
[EndTime "11:04:06 PDT"]
[Termination "HouseOfDurin won on time"]

1. d4 {[%clk 0:03:00.8]} 1... Nf6 {[%clk 0:02:59]} 2. c4 {[%clk 0:03:00.2]} 2...
c5 {[%clk 0:02:59.1]} 3. d5 {[%clk 0:03:00.3]} 3... b5 {[%clk 0:02:59.2]} 4.
cxb5 {[%clk 0:03:01.2]} 4... a6 {[%clk 0:02:59.2]} 5. bxa6 {[%clk 0:03:02.1]}
5... Bxa6 {[%clk 0:02:59.7]} 6. Nc3 {[%clk 0:03:02.8]} 6... d6 {[%clk 0:03:00]}
7. e4 {[%clk 0:03:03]} 7... Bxf1 {[%clk 0:03:00.9]} 8. Kxf1 {[%clk 0:03:03.5]}
8... Nbd7 {[%clk 0:03:01.5]} 9. Nf3 {[%clk 0:03:03.6]} 9... g6 {[%clk 0:03:02]}
10. g3 {[%clk 0:03:03.7]} 10... Bg7 {[%clk 0:03:02.5]} 11. Kg2 {[%clk
0:03:04.4]} 11... O-O {[%clk 0:03:03]} 12. a4 {[%clk 0:03:04.9]} 12... Qa5
{[%clk 0:03:02.2]} 13. Bd2 {[%clk 0:03:01.4]} 13... Qb4 {[%clk 0:03:01.8]} 14.
Qe2 {[%clk 0:02:45.4]} 14... Ng4 {[%clk 0:02:32.9]} 15. Rhb1 {[%clk 0:02:34.7]}
15... Rfb8 {[%clk 0:02:06.8]} 16. Ra3 {[%clk 0:00:48.2]} 16... Nge5 {[%clk
0:01:20.1]} 17. Nxe5 {[%clk 0:00:08.2]} 17... Nxe5 {[%clk 0:01:21]} 18. Nb5
{[%clk 0:00:08.4]} 18... Qc4 {[%clk 0:01:08.2]} 19. Qe3 {[%clk 0:00:08.8]} 19...
Rxa4 {[%clk 0:01:00.7]} 20. Rxa4 {[%clk 0:00:07.1]} 20... Qxa4 {[%clk
0:00:59.3]} 21. Nc3 {[%clk 0:00:07.7]} 21... Qc2 {[%clk 0:00:51.6]} 22. Qe2
{[%clk 0:00:06]} 22... Nc4 {[%clk 0:00:44.4]} 23. Bc1 {[%clk 0:00:04]} 23... Qb3
{[%clk 0:00:27.4]} 24. Ra1 {[%clk 0:00:04.1]} 24... Nxb2 {[%clk 0:00:24.3]} 25.
Bxb2 {[%clk 0:00:04.3]} 25... Qxb2 {[%clk 0:00:24.9]} 26. Rb1 {[%clk 0:00:04.7]}
26... Bxc3 {[%clk 0:00:20.9]} 27. Rxb2 {[%clk 0:00:04.5]} 27... Rxb2 {[%clk
0:00:21.8]} 28. Qa6 {[%clk 0:00:03.8]} 28... Bd4 {[%clk 0:00:21.9]} 29. Kh3
{[%clk 0:00:03.5]} 29... Rxf2 {[%clk 0:00:21.3]} 30. Qc8+ {[%clk 0:00:03.8]}
30... Kg7 {[%clk 0:00:21.3]} 31. Qe8 {[%clk 0:00:03.6]} 31... Bf6 {[%clk
0:00:20.6]} 32. Qc6 {[%clk 0:00:02.9]} 32... Re2 {[%clk 0:00:19.1]} 33. Qb5
{[%clk 0:00:02.9]} 33... Rxe4 {[%clk 0:00:18.9]} 34. Qd3 {[%clk 0:00:03.2]}
34... Rd4 {[%clk 0:00:18.8]} 35. Qf3 {[%clk 0:00:03.6]} 35... c4 {[%clk
0:00:18.4]} 36. Qe2 {[%clk 0:00:02.7]} 36... Rd3 {[%clk 0:00:18.2]} 37. Qc2
{[%clk 0:00:02.3]} 37... Rc3 {[%clk 0:00:16.7]} 38. Qe2 {[%clk 0:00:02]} 38...
Rd3 {[%clk 0:00:16]} 39. Qc2 {[%clk 0:00:01.6]} 39... Rd4 {[%clk 0:00:12.6]} 40.
Kg2 {[%clk 0:00:01.6]} 40... c3 {[%clk 0:00:11.5]} 41. Kh3 {[%clk 0:00:01.3]}
41... Rxd5 {[%clk 0:00:10.2]} 0-1

[Event "*** Titled Tuesday Blitz"]
[Site "Chess.com"]
[Date "2020.04.14"]
[Round "6"]
[White "Misticpikachu"]
[Black "iulik86"]
[Result "0-1"]
[WhiteElo "2303"]
[BlackElo "2522"]
[TimeControl "180+1"]
[EndTime "11:04:07 PDT"]
[Termination "iulik86 won by checkmate"]

1. c4 {[%clk 0:03:00.9]} 1... Nf6 {[%clk 0:02:59.4]} 2. Nc3 {[%clk 0:02:57.9]}
2... g6 {[%clk 0:03:00.3]} 3. e4 {[%clk 0:02:56.7]} 3... Bg7 {[%clk 0:02:58]} 4.
d4 {[%clk 0:02:54.4]} 4... d6 {[%clk 0:02:57.9]} 5. h3 {[%clk 0:02:54.7]} 5...
O-O {[%clk 0:02:56.8]} 6. Be3 {[%clk 0:02:55.2]} 6... c5 {[%clk 0:02:56]} 7. Nf3
{[%clk 0:02:53.8]} 7... cxd4 {[%clk 0:02:55.7]} 8. Nxd4 {[%clk 0:02:54.7]} 8...
Nc6 {[%clk 0:02:56]} 9. Be2 {[%clk 0:02:55.2]} 9... Bd7 {[%clk 0:02:45.5]} 10.
O-O {[%clk 0:02:54.6]} 10... Rc8 {[%clk 0:02:44.4]} 11. Qc2 {[%clk 0:02:43.9]}
11... a6 {[%clk 0:02:42.2]} 12. a3 {[%clk 0:02:31.9]} 12... Qe8 {[%clk
0:02:16.8]} 13. Rac1 {[%clk 0:01:42.2]} 13... Ng4 {[%clk 0:01:59.2]} 14. hxg4
{[%clk 0:01:05.1]} 14... Nxd4 {[%clk 0:01:58.6]} 15. Bxd4 {[%clk 0:01:05]} 15...
Bxd4 {[%clk 0:01:58]} 16. Qd3 {[%clk 0:01:02.3]} 16... Bg7 {[%clk 0:01:55]} 17.
b4 {[%clk 0:00:56.6]} 17... a5 {[%clk 0:01:49.9]} 18. Nd5 {[%clk 0:00:53.8]}
18... Qd8 {[%clk 0:01:47.6]} 19. Rb1 {[%clk 0:00:48.3]} 19... axb4 {[%clk
0:01:45.4]} 20. axb4 {[%clk 0:00:41.3]} 20... Be6 {[%clk 0:01:45.4]} 21. Rfc1
{[%clk 0:00:39.6]} 21... f5 {[%clk 0:01:37.1]} 22. exf5 {[%clk 0:00:31.3]} 22...
gxf5 {[%clk 0:01:36.9]} 23. g5 {[%clk 0:00:31.7]} 23... Bf7 {[%clk 0:01:29.1]}
24. Bf3 {[%clk 0:00:28.2]} 24... e6 {[%clk 0:01:13.6]} 25. Nf6+ {[%clk
0:00:27.6]} 25... Bxf6 {[%clk 0:01:12.6]} 26. gxf6 {[%clk 0:00:28.5]} 26... Bg6
{[%clk 0:01:10.8]} 27. Bxb7 {[%clk 0:00:23.1]} 27... Rb8 {[%clk 0:01:08.7]} 28.
Bf3 {[%clk 0:00:23.4]} 28... e5 {[%clk 0:01:00.6]} 29. Qd5+ {[%clk 0:00:21.9]}
29... Bf7 {[%clk 0:01:00.1]} 30. Qd2 {[%clk 0:00:15.4]} 30... Qxf6 {[%clk
0:00:59.1]} 31. Bd5 {[%clk 0:00:15.8]} 31... Kh8 {[%clk 0:00:56.3]} 32. Bxf7
{[%clk 0:00:15.9]} 32... Rxf7 {[%clk 0:00:57.2]} 33. Rd1 {[%clk 0:00:13.3]}
33... Rb6 {[%clk 0:00:51.2]} 34. c5 {[%clk 0:00:10.7]} 34... dxc5 {[%clk
0:00:50]} 35. bxc5 {[%clk 0:00:11.6]} 35... Rc6 {[%clk 0:00:45.2]} 36. Qd5
{[%clk 0:00:11.4]} 36... Kg7 {[%clk 0:00:42.4]} 37. Rb8 {[%clk 0:00:10.8]} 37...
Rfc7 {[%clk 0:00:34.4]} 38. Rb5 {[%clk 0:00:04.9]} 38... e4 {[%clk 0:00:31.9]}
39. Rb8 {[%clk 0:00:04.8]} 39... Rxc5 {[%clk 0:00:28.7]} 40. Qg8+ {[%clk
0:00:05.3]} 40... Kh6 {[%clk 0:00:28.9]} 41. Rf8 {[%clk 0:00:05.8]} 41... Qg6
{[%clk 0:00:20.7]} 42. Qb3 {[%clk 0:00:03.7]} 42... Rc3 {[%clk 0:00:18.8]} 43.
Qb4 {[%clk 0:00:04.2]} 43... Rc1 {[%clk 0:00:17.6]} 44. Rxc1 {[%clk 0:00:03.1]}
44... Rxc1+ {[%clk 0:00:16.9]} 45. Kh2 {[%clk 0:00:03.7]} 45... Qh5+ {[%clk
0:00:17.1]} 46. Kg3 {[%clk 0:00:04.2]} 46... Qg4+ {[%clk 0:00:16.7]} 47. Kh2
{[%clk 0:00:04.7]} 47... Qh4# {[%clk 0:00:17]} 0-1

[Event "*** Titled Tuesday Blitz"]
[Site "Chess.com"]
[Date "2020.04.14"]
[Round "6"]
[White "Monmoransy"]
[Black "machupichu10"]
[Result "0-1"]
[WhiteElo "2609"]
[BlackElo "2804"]
[TimeControl "180+1"]
[EndTime "11:04:08 PDT"]
[Termination "machupichu10 won on time"]

1. e4 {[%clk 0:03:00.9]} 1... c5 {[%clk 0:02:57.4]} 2. Nf3 {[%clk 0:03:00.7]}
2... e6 {[%clk 0:02:57.2]} 3. b3 {[%clk 0:03:00.2]} 3... d5 {[%clk 0:02:56.7]}
4. Bb5+ {[%clk 0:02:56]} 4... Bd7 {[%clk 0:02:56.6]} 5. Bxd7+ {[%clk 0:02:55.5]}
5... Qxd7 {[%clk 0:02:57]} 6. exd5 {[%clk 0:02:55.4]} 6... Qxd5 {[%clk
0:02:53.1]} 7. O-O {[%clk 0:02:55.2]} 7... Nc6 {[%clk 0:02:53.2]} 8. Bb2 {[%clk
0:02:53.8]} 8... Nf6 {[%clk 0:02:43]} 9. c4 {[%clk 0:02:51.3]} 9... Qd3 {[%clk
0:02:34.4]} 10. Nc3 {[%clk 0:02:34.3]} 10... Be7 {[%clk 0:02:30]} 11. Re1 {[%clk
0:02:31.2]} 11... Rd8 {[%clk 0:02:14.9]} 12. Re3 {[%clk 0:02:20.3]} 12... Qd7
{[%clk 0:02:12.4]} 13. Ne4 {[%clk 0:02:09.2]} 13... Nd4 {[%clk 0:01:17.9]} 14.
Nxd4 {[%clk 0:01:09.5]} 14... cxd4 {[%clk 0:01:16.7]} 15. Nxf6+ {[%clk
0:01:07.9]} 15... Bxf6 {[%clk 0:01:16.7]} 16. Re1 {[%clk 0:00:56.2]} 16... O-O
{[%clk 0:01:16.4]} 17. d3 {[%clk 0:00:55.7]} 17... Rfe8 {[%clk 0:01:11]} 18. Re4
{[%clk 0:00:54.9]} 18... g6 {[%clk 0:01:08.4]} 19. Qe2 {[%clk 0:00:54.5]} 19...
Bg7 {[%clk 0:01:08.1]} 20. f4 {[%clk 0:00:53]} 20... f5 {[%clk 0:01:07.3]} 21.
Re5 {[%clk 0:00:48.5]} 21... Bxe5 {[%clk 0:00:59.5]} 22. Qxe5 {[%clk 0:00:47.3]}
22... Qd6 {[%clk 0:00:55.2]} 23. Re1 {[%clk 0:00:45.7]} 23... Kf7 {[%clk
0:00:48.7]} 24. Kf2 {[%clk 0:00:42.8]} 24... h6 {[%clk 0:00:47.5]} 25. h4 {[%clk
0:00:41.9]} 25... Rd7 {[%clk 0:00:40.1]} 26. a3 {[%clk 0:00:40.2]} 26... Rg8
{[%clk 0:00:28.1]} 27. b4 {[%clk 0:00:35.9]} 27... g5 {[%clk 0:00:27.1]} 28.
hxg5 {[%clk 0:00:33]} 28... hxg5 {[%clk 0:00:27.1]} 29. fxg5 {[%clk 0:00:26.4]}
29... Qxe5 {[%clk 0:00:24.2]} 30. Rxe5 {[%clk 0:00:25.6]} 30... Rxg5 {[%clk
0:00:24.7]} 31. a4 {[%clk 0:00:20.7]} 31... Kf6 {[%clk 0:00:20.2]} 32. Re1
{[%clk 0:00:18.1]} 32... e5 {[%clk 0:00:20.2]} 33. c5 {[%clk 0:00:16.4]} 33...
Ke6 {[%clk 0:00:17.8]} 34. b5 {[%clk 0:00:13.7]} 34... Kd5 {[%clk 0:00:18]} 35.
Rc1 {[%clk 0:00:11.9]} 35... Rc7 {[%clk 0:00:18]} 36. Ba3 {[%clk 0:00:12]} 36...
e4 {[%clk 0:00:14.6]} 37. a5 {[%clk 0:00:09.8]} 37... e3+ {[%clk 0:00:12.9]} 38.
Kf3 {[%clk 0:00:08]} 38... e2 {[%clk 0:00:07.3]} 39. Kxe2 {[%clk 0:00:06.7]}
39... Rxg2+ {[%clk 0:00:07]} 40. Kf3 {[%clk 0:00:07.1]} 40... Ra2 {[%clk
0:00:07.5]} 41. Bb4 {[%clk 0:00:06.3]} 41... Rb2 {[%clk 0:00:07.7]} 42. Rc4
{[%clk 0:00:06.3]} 42... Rb3 {[%clk 0:00:07.8]} 43. Kf4 {[%clk 0:00:05.6]} 43...
Rxd3 {[%clk 0:00:07.6]} 44. Rc1 {[%clk 0:00:04.8]} 44... Rb3 {[%clk 0:00:08.2]}
45. b6 {[%clk 0:00:01.6]} 45... axb6 {[%clk 0:00:08.3]} 0-1